[Event "Late-Titled-Tuesday-Blitz-June-25-2024"]
[Site "Chess.com"]
[Date "2024.06.25"]
[Round "7"]
[White "RTchess367"]
[Black "boguszp"]
[Result "1/2-1/2"]
[WhiteElo "2235"]
[BlackElo "1976"]
[TimeControl "180+1"]
[EndTime "15:15:36 PDT"]
[Termination "Game drawn by repetition"]

1. e4 {[%clk 0:02:59.7]} 1... e6 {[%clk 0:02:42.8]} 2. d4 {[%clk 0:02:59.1]}
2... d5 {[%clk 0:02:42.3]} 3. Bd3 {[%clk 0:02:59.2]} 3... dxe4 {[%clk 0:02:41]}
4. Bxe4 {[%clk 0:03:00.1]} 4... Nf6 {[%clk 0:02:39.3]} 5. Bf3 {[%clk 0:03:00.3]}
5... c5 {[%clk 0:02:39.4]} 6. Ne2 {[%clk 0:03:00.1]} 6... Nc6 {[%clk 0:02:37.1]}
7. Be3 {[%clk 0:02:59.1]} 7... cxd4 {[%clk 0:02:32]} 8. Nxd4 {[%clk 0:03:00]}
8... Nxd4 {[%clk 0:02:27.2]} 9. Qxd4 {[%clk 0:02:59.1]} 9... Qxd4 {[%clk
0:02:25.5]} 10. Bxd4 {[%clk 0:02:59.9]} 10... Be7 {[%clk 0:02:23.4]} 11. Nc3
{[%clk 0:02:54.5]} 11... O-O {[%clk 0:02:22.4]} 12. O-O {[%clk 0:02:53.7]} 12...
Rd8 {[%clk 0:02:15.6]} 13. Rfd1 {[%clk 0:02:50.1]} 13... Bd7 {[%clk 0:01:59.6]}
14. Bxb7 {[%clk 0:02:49.4]} 14... Rab8 {[%clk 0:01:59.2]} 15. Bf3 {[%clk
0:02:48.8]} 15... Rxb2 {[%clk 0:01:58.1]} 16. Nd5 {[%clk 0:02:45.8]} 16... Nxd5
{[%clk 0:01:31]} 17. Bxb2 {[%clk 0:02:45.4]} 17... Bc6 {[%clk 0:01:25.2]} 18. c4
{[%clk 0:02:44.1]} 18... Nb4 {[%clk 0:01:20]} 19. Rxd8+ {[%clk 0:02:39.1]} 19...
Bxd8 {[%clk 0:01:19.3]} 20. Rd1 {[%clk 0:02:36.6]} 20... Bb6 {[%clk 0:01:14.4]}
21. c5 {[%clk 0:02:34.4]} 21... Bxc5 {[%clk 0:01:08.1]} 22. Rd8+ {[%clk
0:02:30.8]} 22... Bf8 {[%clk 0:01:07.1]} 23. Ba3 {[%clk 0:02:28.1]} 23... a5
{[%clk 0:01:04.4]} 24. Bxb4 {[%clk 0:02:25.3]} 24... axb4 {[%clk 0:00:57.2]} 25.
Bxc6 {[%clk 0:02:25.5]} 25... f6 {[%clk 0:00:54.8]} 26. Ba4 {[%clk 0:02:20.6]}
26... Kf7 {[%clk 0:00:41.4]} 27. Bb3 {[%clk 0:02:19.1]} 27... Be7 {[%clk
0:00:39.8]} 28. Ra8 {[%clk 0:02:15.8]} 28... Bc5 {[%clk 0:00:35.2]} 29. Ra5
{[%clk 0:02:13.7]} 29... Bd6 {[%clk 0:00:30.3]} 30. Ra6 {[%clk 0:02:13.8]} 30...
Be5 {[%clk 0:00:26.5]} 31. Rxe6 {[%clk 0:02:12.4]} 31... Kg6 {[%clk 0:00:24.3]}
32. Rb6 {[%clk 0:02:10.3]} 32... Bc3 {[%clk 0:00:23.7]} 33. g3 {[%clk
0:02:09.8]} 33... h5 {[%clk 0:00:22.6]} 34. h4 {[%clk 0:02:09.9]} 34... Kf5
{[%clk 0:00:21]} 35. Kg2 {[%clk 0:02:09.9]} 35... g5 {[%clk 0:00:20.1]} 36. hxg5
{[%clk 0:02:09.2]} 36... fxg5 {[%clk 0:00:20.1]} 37. Bc2+ {[%clk 0:02:09.2]}
37... Ke5 {[%clk 0:00:19]} 38. Bd1 {[%clk 0:02:09.5]} 38... h4 {[%clk
0:00:16.1]} 39. gxh4 {[%clk 0:02:08.4]} 39... gxh4 {[%clk 0:00:16]} 40. Kh3
{[%clk 0:02:09.1]} 40... Be1 {[%clk 0:00:13.4]} 41. Kxh4 {[%clk 0:02:07.5]}
41... Bxf2+ {[%clk 0:00:13.1]} 42. Kg4 {[%clk 0:02:07.8]} 42... Bxb6 {[%clk
0:00:13.7]} 43. Bb3 {[%clk 0:02:07.9]} 43... Kd4 {[%clk 0:00:13.7]} 44. Kf5
{[%clk 0:02:07.4]} 44... Kc3 {[%clk 0:00:14]} 45. Ke6 {[%clk 0:02:07.9]} 45...
Be3 {[%clk 0:00:13.6]} 46. Kd5 {[%clk 0:02:08.2]} 46... Kb2 {[%clk 0:00:13]} 47.
Kc6 {[%clk 0:02:08.6]} 47... Ka3 {[%clk 0:00:12.6]} 48. Kb5 {[%clk 0:02:09.1]}
48... Bd4 {[%clk 0:00:12.3]} 49. Kc4 {[%clk 0:02:09.1]} 49... Bb2 {[%clk
0:00:11.8]} 50. Kd5 {[%clk 0:02:07.2]} 50... Bc3 {[%clk 0:00:11.8]} 51. Kc4
{[%clk 0:02:07.1]} 51... Bb2 {[%clk 0:00:12.4]} 52. Kd3 {[%clk 0:02:07.8]} 52...
Be5 {[%clk 0:00:12]} 53. Kc2 {[%clk 0:02:07.1]} 53... Bf6 {[%clk 0:00:11.8]} 54.
Kd3 {[%clk 0:02:07.4]} 54... Be5 {[%clk 0:00:12.4]} 55. Ke2 {[%clk 0:02:08.1]}
55... Bf6 {[%clk 0:00:12.8]} 56. Kf3 {[%clk 0:02:08.9]} 56... Be5 {[%clk
0:00:13.4]} 57. Ke4 {[%clk 0:02:09.6]} 57... Bf6 {[%clk 0:00:13.8]} 58. Kf5
{[%clk 0:02:09.6]} 58... Bd4 {[%clk 0:00:13.8]} 59. Ke6 {[%clk 0:02:10]} 59...
Bc3 {[%clk 0:00:13.7]} 60. Kd5 {[%clk 0:02:10.8]} 60... Bb2 {[%clk 0:00:13.5]}
61. Kc5 {[%clk 0:02:10]} 61... Bc3 {[%clk 0:00:14]} 62. Kc4 {[%clk 0:02:10.6]}
62... Bb2 {[%clk 0:00:14]} 1/2-1/2

[Event "Late-Titled-Tuesday-Blitz-June-25-2024"]
[Site "Chess.com"]
[Date "2024.06.25"]
[Round "7"]
[White "MKlose11"]
[Black "RaugintaBulba"]
[Result "0-1"]
[WhiteElo "2610"]
[BlackElo "2479"]
[TimeControl "180+1"]
[EndTime "15:15:38 PDT"]
[Termination "RaugintaBulba won by resignation"]

1. e4 {[%clk 0:03:00.9]} 1... e6 {[%clk 0:02:39]} 2. d4 {[%clk 0:03:00]} 2... d5
{[%clk 0:02:39.7]} 3. Nc3 {[%clk 0:02:57.7]} 3... Nf6 {[%clk 0:02:39.4]} 4. e5
{[%clk 0:02:57.4]} 4... Nfd7 {[%clk 0:02:40.1]} 5. f4 {[%clk 0:02:52.6]} 5... c5
{[%clk 0:02:40.7]} 6. dxc5 {[%clk 0:02:52.8]} 6... Bxc5 {[%clk 0:02:39.8]} 7.
Nf3 {[%clk 0:02:53]} 7... a6 {[%clk 0:02:29.5]} 8. Bd3 {[%clk 0:02:52.7]} 8...
Nc6 {[%clk 0:02:07.8]} 9. Qe2 {[%clk 0:02:52.3]} 9... b5 {[%clk 0:02:04.3]} 10.
Nd1 {[%clk 0:02:46.2]} 10... Qb6 {[%clk 0:01:58.1]} 11. Be3 {[%clk 0:02:46]}
11... Bxe3 {[%clk 0:01:54.3]} 12. Nxe3 {[%clk 0:02:43.4]} 12... Nd4 {[%clk
0:01:50.7]} 13. Nxd4 {[%clk 0:02:41.9]} 13... Qxd4 {[%clk 0:01:51.6]} 14. O-O
{[%clk 0:02:38.9]} 14... Nc5 {[%clk 0:01:49.5]} 15. Rab1 {[%clk 0:02:31.9]}
15... O-O {[%clk 0:01:34.1]} 16. g3 {[%clk 0:02:30.7]} 16... Bd7 {[%clk
0:01:26.6]} 17. Rfd1 {[%clk 0:02:27.9]} 17... Nxd3 {[%clk 0:01:25.2]} 18. Qxd3
{[%clk 0:02:19.5]} 18... Qxd3 {[%clk 0:01:25.7]} 19. cxd3 {[%clk 0:02:12.1]}
19... f6 {[%clk 0:01:21.2]} 20. Rbc1 {[%clk 0:02:08.1]} 20... fxe5 {[%clk
0:01:16.9]} 21. fxe5 {[%clk 0:02:07.7]} 21... Rf3 {[%clk 0:01:14]} 22. Re1
{[%clk 0:02:06.9]} 22... d4 {[%clk 0:01:11.7]} 23. Nc2 {[%clk 0:01:53.9]} 23...
Rxd3 {[%clk 0:01:11.1]} 24. Nb4 {[%clk 0:01:54]} 24... Rd2 {[%clk 0:01:03.6]}
25. Rc7 {[%clk 0:01:53]} 25... Rxb2 {[%clk 0:00:55.8]} 26. Nd3 {[%clk
0:01:49.8]} 26... Rd2 {[%clk 0:00:55]} 27. Nf4 {[%clk 0:01:43.1]} 27... Rd8
{[%clk 0:00:49.3]} 28. a3 {[%clk 0:01:36.4]} 28... g5 {[%clk 0:00:49.1]} 29. Nh5
{[%clk 0:01:35.6]} 29... Kf7 {[%clk 0:00:44.2]} 30. Nf6 {[%clk 0:01:30.6]} 30...
Ke7 {[%clk 0:00:44.7]} 31. Ra7 {[%clk 0:01:28.7]} 31... d3 {[%clk 0:00:37.3]}
32. Rxa6 {[%clk 0:01:27.4]} 32... Ra2 {[%clk 0:00:32.5]} 33. Rd1 {[%clk
0:01:23.8]} 33... d2 {[%clk 0:00:30.9]} 34. Kf2 {[%clk 0:01:24]} 34... b4 {[%clk
0:00:29.1]} 35. Rd6 {[%clk 0:01:18.7]} 35... Ba4 {[%clk 0:00:22.7]} 36. Ng8+
{[%clk 0:01:07.9]} 36... Rxg8 {[%clk 0:00:20.7]} 37. R1xd2 {[%clk 0:01:07.2]}
37... Rxd2+ {[%clk 0:00:19]} 38. Rxd2 {[%clk 0:01:08.1]} 38... b3 {[%clk
0:00:17.9]} 39. Rd6 {[%clk 0:01:07.4]} 39... Rb8 {[%clk 0:00:15.2]} 40. Ra6
{[%clk 0:01:05.6]} 40... b2 {[%clk 0:00:15]} 41. Rxa4 {[%clk 0:01:05.5]} 41...
b1=Q {[%clk 0:00:15.1]} 42. Ra7+ {[%clk 0:01:06.4]} 42... Ke8 {[%clk 0:00:15.1]}
43. Kf3 {[%clk 0:01:07.3]} 43... Qf5+ {[%clk 0:00:14.9]} 44. Kg2 {[%clk
0:01:06.1]} 44... Rb2+ {[%clk 0:00:15.1]} 0-1

[Event "Late-Titled-Tuesday-Blitz-June-25-2024"]
[Site "Chess.com"]
[Date "2024.06.25"]
[Round "7"]
[White "guineo59"]
[Black "1g60-1"]
[Result "0-1"]
[WhiteElo "2215"]
[BlackElo "2470"]
[TimeControl "180+1"]
[EndTime "15:15:39 PDT"]
[Termination "1g60-1 won by resignation"]

1. d4 {[%clk 0:02:57.3]} 1... e6 {[%clk 0:02:59.6]} 2. Nf3 {[%clk 0:02:57.5]}
2... f5 {[%clk 0:02:59.6]} 3. Bf4 {[%clk 0:02:56.6]} 3... Nf6 {[%clk 0:02:59.3]}
4. e3 {[%clk 0:02:56.6]} 4... b6 {[%clk 0:02:59.8]} 5. Bd3 {[%clk 0:02:56.5]}
5... Bb7 {[%clk 0:02:58.2]} 6. O-O {[%clk 0:02:56.9]} 6... Bd6 {[%clk
0:02:58.4]} 7. c4 {[%clk 0:02:57.1]} 7... O-O {[%clk 0:02:58.1]} 8. Nc3 {[%clk
0:02:55.9]} 8... Nc6 {[%clk 0:02:48.5]} 9. Rc1 {[%clk 0:02:51]} 9... Ne7 {[%clk
0:02:40.1]} 10. Nb5 {[%clk 0:02:22.2]} 10... Bxf4 {[%clk 0:02:39.6]} 11. exf4
{[%clk 0:02:21.6]} 11... Ng6 {[%clk 0:02:36.1]} 12. g3 {[%clk 0:02:20.9]} 12...
Ne4 {[%clk 0:02:28.8]} 13. Nc3 {[%clk 0:02:15.6]} 13... Nxc3 {[%clk 0:02:22.6]}
14. Rxc3 {[%clk 0:02:12.4]} 14... Qf6 {[%clk 0:02:12.4]} 15. Be2 {[%clk
0:01:26.7]} 15... d6 {[%clk 0:02:05.6]} 16. Re1 {[%clk 0:01:24.8]} 16... Rfe8
{[%clk 0:02:03.2]} 17. Re3 {[%clk 0:01:22.9]} 17... e5 {[%clk 0:01:54.6]} 18.
dxe5 {[%clk 0:01:14.5]} 18... dxe5 {[%clk 0:01:54.9]} 19. fxe5 {[%clk
0:01:13.6]} 19... Nxe5 {[%clk 0:01:52]} 20. Nxe5 {[%clk 0:01:10.3]} 20... Rxe5
{[%clk 0:01:52.1]} 21. Bf3 {[%clk 0:01:05.6]} 21... Bxf3 {[%clk 0:01:17.9]} 22.
Qxf3 {[%clk 0:01:02.9]} 22... Rae8 {[%clk 0:01:16.3]} 23. Qd5+ {[%clk 0:00:51]}
23... Rxd5 {[%clk 0:01:12.9]} 24. Rxe8+ {[%clk 0:00:50.4]} 24... Kf7 {[%clk
0:01:13]} 25. cxd5 {[%clk 0:00:50.4]} 25... h6 {[%clk 0:00:43.5]} 26. b3 {[%clk
0:00:47]} 26... Qd4 {[%clk 0:00:31.5]} 27. R8e7+ {[%clk 0:00:42.2]} 27... Kg6
{[%clk 0:00:29.7]} 28. R1e6+ {[%clk 0:00:29.8]} 28... Kh7 {[%clk 0:00:29.4]} 29.
Rxc7 {[%clk 0:00:27.6]} 29... Qd1+ {[%clk 0:00:29.3]} 0-1

[Event "Late-Titled-Tuesday-Blitz-June-25-2024"]
[Site "Chess.com"]
[Date "2024.06.25"]
[Round "7"]
[White "dennisodessa"]
[Black "maximnovik"]
[Result "0-1"]
[WhiteElo "2656"]
[BlackElo "2526"]
[TimeControl "180+1"]
[EndTime "15:15:42 PDT"]
[Termination "maximnovik won by resignation"]

1. d4 {[%clk 0:03:00]} 1... Nf6 {[%clk 0:02:59.8]} 2. c4 {[%clk 0:03:00.2]} 2...
g6 {[%clk 0:02:59.9]} 3. Nc3 {[%clk 0:03:00.7]} 3... d5 {[%clk 0:03:00.3]} 4.
Bg5 {[%clk 0:03:00.4]} 4... Ne4 {[%clk 0:03:00.5]} 5. Nxe4 {[%clk 0:03:00.7]}
5... dxe4 {[%clk 0:03:00.6]} 6. Qd2 {[%clk 0:03:01.6]} 6... Bg7 {[%clk
0:03:00.4]} 7. e3 {[%clk 0:03:02.1]} 7... c5 {[%clk 0:02:57.7]} 8. d5 {[%clk
0:03:00.9]} 8... h6 {[%clk 0:02:49.7]} 9. Bh4 {[%clk 0:02:56.5]} 9... O-O {[%clk
0:02:45.3]} 10. Ne2 {[%clk 0:02:55.4]} 10... f5 {[%clk 0:02:41.6]} 11. Nc3
{[%clk 0:02:46]} 11... g5 {[%clk 0:02:40]} 12. Bg3 {[%clk 0:02:38.4]} 12... e5
{[%clk 0:02:40]} 13. dxe6 {[%clk 0:02:36.3]} 13... Qxd2+ {[%clk 0:02:39]} 14.
Kxd2 {[%clk 0:02:37.2]} 14... Bxe6 {[%clk 0:02:39.2]} 15. f3 {[%clk 0:02:23.2]}
15... f4 {[%clk 0:02:11.2]} 16. Bf2 {[%clk 0:02:22.2]} 16... exf3 {[%clk
0:02:07.4]} 17. gxf3 {[%clk 0:02:23]} 17... Nc6 {[%clk 0:02:07.3]} 18. e4 {[%clk
0:02:15.8]} 18... Bd4 {[%clk 0:02:00.2]} 19. Bg1 {[%clk 0:01:12.6]} 19... Rad8
{[%clk 0:01:57.9]} 20. Nd5 {[%clk 0:01:12.2]} 20... Bxg1 {[%clk 0:01:53.8]} 21.
Rxg1 {[%clk 0:01:13.1]} 21... Ne5 {[%clk 0:01:41.9]} 22. Be2 {[%clk 0:01:13.1]}
22... Bxd5 {[%clk 0:01:38.7]} 23. cxd5 {[%clk 0:01:08.4]} 23... Kf7 {[%clk
0:01:38.5]} 24. Rac1 {[%clk 0:01:07.7]} 24... Rc8 {[%clk 0:01:38.1]} 25. Rc2
{[%clk 0:01:02.2]} 25... Kf6 {[%clk 0:01:37.5]} 26. Rgc1 {[%clk 0:01:02.2]}
26... c4 {[%clk 0:01:27.2]} 27. b3 {[%clk 0:00:52.3]} 27... b5 {[%clk
0:01:26.2]} 28. a4 {[%clk 0:00:52.1]} 28... a6 {[%clk 0:01:10.8]} 29. bxc4
{[%clk 0:00:25.3]} 29... bxc4 {[%clk 0:01:10.7]} 30. Kc3 {[%clk 0:00:25.8]}
30... Rb8 {[%clk 0:01:05.9]} 31. Kd4 {[%clk 0:00:18]} 31... Rb4 {[%clk 0:01:03]}
32. Kc5 {[%clk 0:00:16]} 32... Rxa4 {[%clk 0:00:58.2]} 33. Rf1 {[%clk
0:00:09.5]} 33... Rc8+ {[%clk 0:00:57]} 34. Kd6 {[%clk 0:00:07.4]} 34... Rb4
{[%clk 0:00:56.7]} 0-1

[Event "Late-Titled-Tuesday-Blitz-June-25-2024"]
[Site "Chess.com"]
[Date "2024.06.25"]
[Round "7"]
[White "Grischuk"]
[Black "MarkusRagger"]
[Result "1-0"]
[WhiteElo "3116"]
[BlackElo "2797"]
[TimeControl "180+1"]
[EndTime "15:15:43 PDT"]
[Termination "Grischuk won by resignation"]

1. d4 {[%clk 0:03:00.9]} 1... Nf6 {[%clk 0:02:59.2]} 2. c4 {[%clk 0:03:01]} 2...
g6 {[%clk 0:02:59.3]} 3. g3 {[%clk 0:03:01.1]} 3... c6 {[%clk 0:02:52.8]} 4. Bg2
{[%clk 0:03:00.4]} 4... d5 {[%clk 0:02:53.5]} 5. Qa4 {[%clk 0:03:00.2]} 5... Bg7
{[%clk 0:02:49.6]} 6. cxd5 {[%clk 0:02:59.8]} 6... O-O {[%clk 0:02:49.7]} 7.
dxc6 {[%clk 0:02:52.6]} 7... Nxc6 {[%clk 0:02:49.1]} 8. Nf3 {[%clk 0:02:52.2]}
8... Nd5 {[%clk 0:02:48.5]} 9. O-O {[%clk 0:02:21.8]} 9... Nb6 {[%clk 0:02:47]}
10. Qa3 {[%clk 0:02:22.3]} 10... Nxd4 {[%clk 0:02:39.4]} 11. Nxd4 {[%clk
0:02:22.2]} 11... Qxd4 {[%clk 0:02:22.4]} 12. Nc3 {[%clk 0:02:21.7]} 12... Be6
{[%clk 0:02:10.9]} 13. Qxe7 {[%clk 0:02:08.8]} 13... Nc4 {[%clk 0:01:52.5]} 14.
Rd1 {[%clk 0:01:52.9]} 14... Qb6 {[%clk 0:01:48.6]} 15. Nd5 {[%clk 0:01:47.1]}
15... Qd8 {[%clk 0:01:15.8]} 16. Qxb7 {[%clk 0:01:11.6]} 16... Rb8 {[%clk
0:01:03.5]} 17. Qxa7 {[%clk 0:01:02.9]} 17... Re8 {[%clk 0:00:50.1]} 18. Bf4
{[%clk 0:00:50]} 18... Rxb2 {[%clk 0:00:41.9]} 19. Rac1 {[%clk 0:00:45.8]} 19...
Ne5 {[%clk 0:00:31.5]} 20. Nc7 {[%clk 0:00:33.3]} 20... Qe7 {[%clk 0:00:25.7]}
21. Qc5 {[%clk 0:00:30.9]} 21... Bf8 {[%clk 0:00:14.1]} 22. Qxe5 {[%clk
0:00:27.8]} 22... Rxa2 {[%clk 0:00:12.7]} 23. Nxe6 {[%clk 0:00:19.7]} 23... Qxe6
{[%clk 0:00:12.4]} 24. Qxe6 {[%clk 0:00:20.1]} 24... fxe6 {[%clk 0:00:12.9]} 25.
Kf1 {[%clk 0:00:16.8]} 1-0

[Event "Late-Titled-Tuesday-Blitz-June-25-2024"]
[Site "Chess.com"]
[Date "2024.06.25"]
[Round "7"]
[White "MaestroCheck"]
[Black "DmitriiZakurdaev"]
[Result "1-0"]
[WhiteElo "2652"]
[BlackElo "2423"]
[TimeControl "180+1"]
[EndTime "15:15:44 PDT"]
[Termination "MaestroCheck won by resignation"]

1. e4 {[%clk 0:03:00.6]} 1... c6 {[%clk 0:03:00.2]} 2. d4 {[%clk 0:03:00.5]}
2... d5 {[%clk 0:03:01.1]} 3. Nd2 {[%clk 0:03:00.2]} 3... dxe4 {[%clk
0:03:01.1]} 4. Nxe4 {[%clk 0:03:00.9]} 4... Nf6 {[%clk 0:03:01.2]} 5. Nxf6+
{[%clk 0:03:01.5]} 5... exf6 {[%clk 0:03:02.1]} 6. c3 {[%clk 0:03:01.8]} 6...
Bd6 {[%clk 0:03:02.7]} 7. Bd3 {[%clk 0:03:02.4]} 7... O-O {[%clk 0:03:03.3]} 8.
Qc2 {[%clk 0:03:03.1]} 8... Re8+ {[%clk 0:03:03.9]} 9. Ne2 {[%clk 0:03:03.3]}
9... h5 {[%clk 0:03:04.4]} 10. O-O {[%clk 0:03:03]} 10... h4 {[%clk 0:03:04.9]}
11. h3 {[%clk 0:03:03]} 11... Nd7 {[%clk 0:03:03.5]} 12. Bd2 {[%clk 0:03:02.5]}
12... Nf8 {[%clk 0:03:03.7]} 13. Rae1 {[%clk 0:03:02.3]} 13... Bc7 {[%clk
0:03:04]} 14. f4 {[%clk 0:03:01.8]} 14... Be6 {[%clk 0:03:02.5]} 15. c4 {[%clk
0:03:01.7]} 15... Qd6 {[%clk 0:03:01.3]} 16. a3 {[%clk 0:03:01.5]} 16... a5
{[%clk 0:03:00.5]} 17. f5 {[%clk 0:02:58.9]} 17... Qh2+ {[%clk 0:02:59.8]} 18.
Kf2 {[%clk 0:02:58.3]} 18... Bd7 {[%clk 0:02:05.4]} 19. c5 {[%clk 0:02:35.7]}
19... Ng6 {[%clk 0:01:35.8]} 20. Rh1 {[%clk 0:02:18]} 20... Rxe2+ {[%clk
0:01:21.4]} 21. Kxe2 {[%clk 0:02:13.9]} 21... Qxg2+ {[%clk 0:01:14.5]} 22. Kd1
{[%clk 0:02:13.7]} 22... Nf4 {[%clk 0:01:13.2]} 23. Be4 {[%clk 0:02:10.2]} 23...
Qg5 {[%clk 0:00:39.3]} 24. Ref1 {[%clk 0:01:49.1]} 24... Qh5+ {[%clk 0:00:37.4]}
25. Kc1 {[%clk 0:01:25.8]} 25... Ne2+ {[%clk 0:00:36.1]} 26. Kb1 {[%clk
0:01:26]} 26... Ng3 {[%clk 0:00:22.7]} 27. Rhg1 {[%clk 0:01:02.2]} 27... Nxf1
{[%clk 0:00:19.5]} 28. Rxf1 {[%clk 0:01:02.8]} 28... Re8 {[%clk 0:00:19.2]} 29.
Bd3 {[%clk 0:01:01.9]} 29... Bc8 {[%clk 0:00:11.6]} 30. Bc1 {[%clk 0:01:01.8]}
30... Bg3 {[%clk 0:00:08.5]} 31. Qg2 {[%clk 0:00:59.5]} 31... Re1 {[%clk
0:00:07.8]} 32. Rxe1 {[%clk 0:00:55.4]} 32... Bxe1 {[%clk 0:00:08.7]} 33. Qe4
{[%clk 0:00:55.9]} 33... Qd1 {[%clk 0:00:04]} 34. Bc2 {[%clk 0:00:55.7]} 34...
Bxf5 {[%clk 0:00:01]} 35. Qxf5 {[%clk 0:00:54.4]} 35... Qxd4 {[%clk 0:00:01.9]}
36. Qc8+ {[%clk 0:00:54.6]} 1-0

[Event "Late-Titled-Tuesday-Blitz-June-25-2024"]
[Site "Chess.com"]
[Date "2024.06.25"]
[Round "7"]
[White "schondeln"]
[Black "konradrutkowski"]
[Result "0-1"]
[WhiteElo "2379"]
[BlackElo "2516"]
[TimeControl "180+1"]
[EndTime "15:15:50 PDT"]
[Termination "konradrutkowski won by resignation"]

1. e4 {[%clk 0:03:00.9]} 1... c5 {[%clk 0:02:59.3]} 2. Nf3 {[%clk 0:03:00.4]}
2... Nc6 {[%clk 0:02:59.4]} 3. Bb5 {[%clk 0:02:59.8]} 3... g6 {[%clk 0:02:56.7]}
4. O-O {[%clk 0:02:59.4]} 4... Bg7 {[%clk 0:02:55.9]} 5. Re1 {[%clk 0:02:59.9]}
5... Nf6 {[%clk 0:02:55.6]} 6. e5 {[%clk 0:03:00.3]} 6... Ng4 {[%clk 0:02:55.3]}
7. Bxc6 {[%clk 0:02:57.5]} 7... dxc6 {[%clk 0:02:56.2]} 8. h3 {[%clk 0:02:52]}
8... Nh6 {[%clk 0:02:56.4]} 9. Nc3 {[%clk 0:02:51.1]} 9... O-O {[%clk
0:02:56.5]} 10. d3 {[%clk 0:02:50.5]} 10... Nf5 {[%clk 0:02:54.5]} 11. Bf4
{[%clk 0:02:22]} 11... Nd4 {[%clk 0:02:49.2]} 12. Nxd4 {[%clk 0:02:19.1]} 12...
cxd4 {[%clk 0:02:50.1]} 13. Ne4 {[%clk 0:02:17.9]} 13... Bf5 {[%clk 0:02:46.5]}
14. Qd2 {[%clk 0:02:15.5]} 14... Rc8 {[%clk 0:02:41.4]} 15. Ng3 {[%clk 0:02:02]}
15... Be6 {[%clk 0:02:37.8]} 16. Bh6 {[%clk 0:02:01.9]} 16... c5 {[%clk
0:02:33.3]} 17. Bxg7 {[%clk 0:02:01.2]} 17... Kxg7 {[%clk 0:02:34.2]} 18. b3
{[%clk 0:02:01.5]} 18... b5 {[%clk 0:02:30.2]} 19. a4 {[%clk 0:02:00]} 19... a6
{[%clk 0:02:23.4]} 20. axb5 {[%clk 0:02:00.1]} 20... axb5 {[%clk 0:02:24.3]} 21.
Qg5 {[%clk 0:01:41.4]} 21... h6 {[%clk 0:02:08.9]} 22. Qf4 {[%clk 0:01:41]}
22... c4 {[%clk 0:02:05.5]} 23. bxc4 {[%clk 0:01:40.8]} 23... bxc4 {[%clk
0:02:06.4]} 24. dxc4 {[%clk 0:01:30.8]} 24... Rxc4 {[%clk 0:02:07.3]} 25. Rad1
{[%clk 0:01:28.9]} 25... Qb6 {[%clk 0:01:56.5]} 26. Qd2 {[%clk 0:01:02.8]} 26...
Rfc8 {[%clk 0:01:47]} 27. Ne2 {[%clk 0:00:52.7]} 27... Rxc2 {[%clk 0:01:31.6]}
28. Qxd4 {[%clk 0:00:51.5]} 28... Qxd4 {[%clk 0:01:31.5]} 29. Nxd4 {[%clk
0:00:47.7]} 29... Rb2 {[%clk 0:01:27.8]} 30. Nxe6+ {[%clk 0:00:46]} 30... fxe6
{[%clk 0:01:28.7]} 31. Rd3 {[%clk 0:00:39.6]} 31... Rcc2 {[%clk 0:01:24.4]} 32.
Rf3 {[%clk 0:00:39.1]} 32... Re2 {[%clk 0:01:23.3]} 33. Rxe2 {[%clk 0:00:38.1]}
33... Rxe2 {[%clk 0:01:24.2]} 34. Re3 {[%clk 0:00:30.1]} 34... Rxe3 {[%clk
0:01:17.1]} 35. fxe3 {[%clk 0:00:31]} 35... g5 {[%clk 0:01:17.8]} 36. g4 {[%clk
0:00:30.9]} 36... Kf7 {[%clk 0:01:12.1]} 37. Kf2 {[%clk 0:00:30.9]} 37... Ke8
{[%clk 0:01:12.7]} 38. Kf3 {[%clk 0:00:29]} 38... Kd7 {[%clk 0:01:11.8]} 39. Ke4
{[%clk 0:00:29.4]} 39... Kc6 {[%clk 0:01:11.2]} 40. Kd4 {[%clk 0:00:29.5]} 40...
Kb5 {[%clk 0:01:09.4]} 41. Ke4 {[%clk 0:00:10.2]} 41... Kc4 {[%clk 0:01:07.7]}
42. Kf3 {[%clk 0:00:10.5]} 42... Kd3 {[%clk 0:01:07.3]} 43. Kf2 {[%clk 0:00:10]}
43... Ke4 {[%clk 0:01:07.1]} 44. Ke2 {[%clk 0:00:10.5]} 44... Kxe5 {[%clk
0:01:06.4]} 45. Kf3 {[%clk 0:00:11.4]} 45... Kd5 {[%clk 0:01:06.2]} 46. Kf2
{[%clk 0:00:11.8]} 46... Ke4 {[%clk 0:01:06.3]} 47. Ke2 {[%clk 0:00:12.3]} 47...
e5 {[%clk 0:01:06.7]} 48. Kf2 {[%clk 0:00:12.8]} 48... Kd3 {[%clk 0:01:06.9]}
49. Kf3 {[%clk 0:00:13.1]} 49... e4+ {[%clk 0:01:07.4]} 50. Kf2 {[%clk
0:00:13.5]} 50... Kd2 {[%clk 0:01:08.1]} 0-1